[Event "1st Chessable Sunway Formentera 2022"]
[Site "Formentera Punta Prima"]
[Date "2022.05.05"]
[Round "7.14"]
[White "Chkhaidze, Nikoloz"]
[Black "Munoz Suarez, Luis Alberto"]
[Result "1-0"]
[ECO "E94"]
[WhiteElo "2301"]
[BlackElo "1907"]
[Annotator "TA"]
[PlyCount "67"]
[EventDate "2022.05.05"]
[EventType "swiss"]
[EventCountry "ESP"]
[SourceTitle "playchess.com"]
[Source "ChessBase"]
[SourceQuality "1"]
[TimeControl "40/5400+30:1800+30"]

{[%evp 20,67,67,44,62,48,55,38,64,59,96,45,43,39,53,42,95,95,91,97,93,89,131,79,83,25,114,112,227,206,202,184,197,172,643,460,469,425,575,574,612,520,779,765,880,852,862,808,737,602]} 1. d4 {[%emt 0:00:05]} Nf6 {[%emt 0:01:07]} 2. c4 {[%emt 0:00:04]} g6 {[%emt 0:00:07]} 3. Nc3 {[%emt 0:00:03]} Bg7 {[%emt 0:00:08]} 4. e4 {[%emt 0:00:03]} d6 {[%emt 0:00:16]} 5. Nf3 {[%emt 0:00:02]} O-O {[%emt 0:00:12]} 6. Be2 {[%emt 0:00:03]} Nbd7 {[%emt 0:00:37]} 7. O-O {[%emt 0:00:09]} e5 {[%emt 0:00:19]} 8. Be3 {[%emt 0:00:07]} Ng4 {[%emt 0:02:33]} 9. Bg5 {[%emt 0:00:17]} f6 {[%emt 0:00:36]} 10. Bc1 {[%emt 0:01:01]} Nh6 {[%emt 0:04:16]} 11. h3 {[%emt 0:07:24]} Nf7 {[%emt 0:16:31] E94: King's Indian: Classical: 6 Be2 e5 7 0-0: Various Black 7th moves.} 12. Be3 {[%emt 0:02:27]} Re8 {[%emt 0:18:26]} 13. Qc2 {[%emt 0:01:08]} c6 {[%emt 0:11:36] [#] White is slightly better.} 14. d5 $146 {[%emt 0:01:46]} ({Predecessor:} 14. b4 Bh6 15. Bxh6 Nxh6 16. Rfd1 Qe7 17. d5 Nf8 18. c5 Nf7 19. Bc4 Kg7 20. dxc6 bxc6 21. Bxf7 Qxf7 22. Rxd6 {1-0 (58) Ovod,E (2290)-Kazakov,V (2046) Novgorod 1999}) 14... c5 {[%emt 0:00:33]} 15. g4 {[%emt 0:05:10] White is much more active. The black rooks are badly placed.} ({Better is} 15. a3 $16) 15... Nf8 {[%emt 0:03:52][%cal Of6f5,Bd7f8,Bf8g6,Bg6f4][%mdl 32]} 16. Kh2 {[%emt 0:19:46]} Kh8 {[%emt 0:02:02]} 17. Nd2 {[%emt 0:01:18][%cal Bf3d2,Bd2f1,Bf1g3][%mdl 32]} g5 {[%emt 0:10:07]} (17... Bh6 $14) 18. Rfb1 $16 {[%emt 0:01:49]} Ng6 {[%emt 0:00:35]} 19. Nf1 {[%emt 0:00:16]} Nf4 {[%emt 0:01:08]} 20. Ng3 {[%emt 0:00:12]} h5 {[%emt 0:06:49]} 21. b4 {[%emt 0:05:48]} (21. Nxh5 $142 Bd7 22. Ng3) 21... hxg4 {[%emt 0:03:21]} 22. Bxg4 {[%emt 0:06:13]} (22. bxc5 $16 gxh3 23. cxd6) 22... Bxg4 {[%emt 0:01:15]} (22... cxb4 $11 {remains equal.} 23. Rxb4 Nh6) 23. hxg4 {[%emt 0:00:02]} Bf8 {[%emt 0:00:28]} (23... Nh6 $16) 24. bxc5 {[%emt 0:00:41]} dxc5 {[%emt 0:00:43]} 25. f3 {[%emt 0:02:21]} ({Resist} 25. Rxb7 $6 Nd6 26. Rbb1 Qd7 $16) 25... b6 {[%emt 0:00:18]} 26. Rh1 {[%emt 0:01:16]} Kg7 $2 {[%emt 0:00:49] [#]} (26... Ng6 27. Nf5 Kg8) 27. Bxf4 {[%emt 0:04:20] White is clearly winning.} gxf4 {[%emt 0:01:41]} 28. Nf5+ {[%emt 0:00:09] Pair of Knights!} Kg6 {[%emt 0:00:47]} 29. Kg2 {[%emt 0:00:47]} Bg7 {[%emt 0:01:53]} 30. Rh5 {[%emt 0:02:52][%cal Rf5h4] [#]} Ng5 {[%emt 0:01:09]} 31. Rah1 {[%emt 0:00:50]} Qd7 {[%emt 0:01:24]} 32. Qf2 {[%emt 0:01:45] And now Qh4 would win.} a6 {[%emt 0:04:22]} 33. Qh4 {[%emt 0:00:42][%cal Oh5h7] White threatens Rh7! and mate.} Rh8 {[%emt 0:01:10] Prevents Rh7.} 34. Nxg7 {[%emt 0:00:54] Weighted Error Value: White=0.26 (precise) /Black=0.79} 1-0

[Event "1st Chessable Sunway Formentera 2022"]
[Site "Formentera Punta Prima"]
[Date "2022.05.05"]
[Round "7.15"]
[White "Neiman, Emmanuel"]
[Black "Vanduyfhuys, Daria"]
[Result "1-0"]
[ECO "E05"]
[WhiteElo "2248"]
[BlackElo "2063"]
[Annotator "TA"]
[PlyCount "115"]
[EventDate "2022.05.05"]
[EventType "swiss"]
[EventCountry "ESP"]
[SourceTitle "playchess.com"]
[Source "ChessBase"]
[SourceQuality "1"]
[TimeControl "40/5400+30:1800+30"]

{[%evp 27,115,-22,-8,-23,4,-2,0,0,0,0,0,0,11,12,36,21,18,17,83,47,82,10,22,13,108,109,114,114,124,27,23,22,22,23,23,35,39,31,111,112,120,118,118,117,114,94,267,153,164,127,165,110,227,245,258,257,253,273,282,281,281,280,292,252,365,363,355,297,531,484,613,566,872,858,829,743,700,674,891,807,797,662,662,661,661,633,2820,2247,5093,1525]} 1. c4 {[%emt 0:00:05]} Nf6 {[%emt 0:00:59]} 2. g3 {[%emt 0:01:43]} e6 {[%emt 0:00:20]} 3. Bg2 {[%emt 0:00:10]} d5 {[%emt 0:00:15]} 4. Nf3 {[%emt 0:00:06]} Be7 {[%emt 0:02:06]} 5. O-O {[%emt 0:00:12]} O-O {[%emt 0:00:05]} 6. d4 {[%emt 0:01:51]} dxc4 {[%emt 0:00:28]} 7. Qc2 {[%emt 0:00:08]} a6 {[%emt 0:00:26]} 8. Qxc4 {[%emt 0:00:16]} b5 {[%emt 0:00:42]} 9. Qc2 {[%emt 0:00:06]} Bb7 {[%emt 0:00:06]} 10. Bg5 {[%emt 0:00:22]} Nbd7 {[%emt 0:01:39]} 11. Nbd2 {[%emt 0:01:39]} Rc8 {[%emt 0:02:19]} 12. Bxf6 {[%emt 0:02:33]} Nxf6 {[%emt 0:00:30]} 13. Nb3 {[%emt 0:00:15]} Be4 {[%emt 0:11:40]} 14. Qc1 {[%emt 0:06:18]} c5 {[%emt 0:21:44]} 15. dxc5 {[%emt 0:00:21] E05: Open Catalan: 5 Nf3 Be7.} Qc7 {[%emt 0:00:24]} (15... a5 $5 {[%cal Ra5a4]}) 16. Qf4 {[%emt 0:13:07]} Qxf4 {[%emt 0:02:57]} 17. gxf4 {[%emt 0:00:06] The position is equal.} Bxc5 {[%emt 0:01:02] [#]} 18. Rac1 $146 {[%emt 0:00:24]} ({Predecessor:} 18. Ne5 Bd6 19. Bxe4 Nxe4 20. Rfc1 g5 21. f3 Nf6 22. Nc6 gxf4 23. a4 b4 24. Rc4 {0-1 (69) Orlinkov,M (2399)-Tunik,G (2503) St Petersburg 2002}) 18... Bb6 {[%emt 0:02:02]} 19. Ne5 {[%emt 0:00:42]} Bxg2 {[%emt 0:13:22]} 20. Kxg2 {[%emt 0:01:26]} a5 {[%emt 0:00:48]} 21. Nc6 {[%emt 0:04:58]} Nd5 {[%emt 0:00:27] Prevents Ne7+.} 22. Kf3 {[%emt 0:01:11] And now e4 would win.} Ra8 {[%emt 0:09:15]} (22... Rc7 $11 {remains equal.}) 23. Nc5 {[%emt 0:05:22] Nd7 is the strong threat.} Rfe8 {[%emt 0:09:59]} 24. Nd3 {[%emt 0:03:47] Pair of Knights!} (24. Nb7 $16) 24... Kf8 $11 {[%emt 0:03:52]} 25. Nde5 {[%emt 0:02:02] Strongly threatening Nd7+.} Nf6 {[%emt 0:01:59] [#] Prevents Nd7+.} (25... Rec8 $1 $11) 26. Rfd1 $1 $16 {[%emt 0:00:15][%cal Od1d7] Black must now prevent Rd7!} Rec8 {[%emt 0:01:11] [#]} 27. Rd7 $1 $36 {[%emt 0:10:52][%mdl 2560] White is on the roll.} Rc7 {[%emt 0:03:17]} 28. Rcd1 {[%emt 0:09:08] The board is on fire. White is much more active.} (28. Rxc7 $16 Bxc7 29. Rc5) 28... Nxd7 {[%emt 0:05:09]} 29. Nxd7+ {[%emt 0:00:07]} Rxd7 {[%emt 0:00:25]} 30. Rxd7 $11 {[%emt 0:00:06][%mdl 4096] Endgame KRB-KRN} Rc8 {[%emt 0:00:34]} 31. Ne5 {[%emt 0:00:20]} f6 {[%emt 0:00:19]} 32. Nd3 {[%emt 0:00:28]} b4 {[%emt 0:01:08]} ({Black should play} 32... Rc6 $14) 33. Rd6 $16 {[%emt 0:00:42][%csl LRb6,LRe6]} Bd8 {[%emt 0:04:15]} 34. Rxe6 {[%emt 0:00:13]} Kf7 {[%emt 0:00:11]} 35. Ra6 {[%emt 0:01:19]} Rc2 {[%emt 0:00:31]} 36. f5 {[%emt 0:01:58]} Rd2 $2 {[%emt 0:01:07]} (36... g5 $16) 37. Rd6 {[%emt 0:00:13]} (37. Ra7+ $18 Kf8 38. Nf4) 37... Ke7 {[%emt 0:00:18]} 38. Re6+ {[%emt 0:01:31]} Kf7 {[%emt 0:00:16]} 39. Rc6 {[%emt 0:01:18]} ({Better is} 39. Ra6 $18) 39... Rd1 {[%emt 0:01:14]} (39... g5 $16 {keeps fighting.}) 40. Rc1 $18 {[%emt 0:00:00]} Rxc1 {[%emt 0:00:00]} 41. Nxc1 {[%emt 0:05:33] KB-KN} Bc7 {[%emt 0:00:52] [#]} 42. h3 {[%emt 0:00:01]} Ke7 {[%emt 0:00:29]} 43. Ke4 {[%emt 0:00:11]} Kd6 {[%emt 0:00:06]} 44. Nd3 {[%emt 0:00:07]} Kc6 {[%emt 0:02:30]} 45. Kd4 {[%emt 0:05:28]} g6 {[%emt 0:02:52]} (45... Kd6 {might work better.} 46. Kc4 Kc6) 46. fxg6 {[%emt 0:06:15]} hxg6 {[%emt 0:00:15]} 47. f4 {[%emt 0:01:27][%cal Bf2f4,Bf4f5][%mdl 32]} Bb6+ $2 {[%emt 0:02:49]} (47... Kd6 48. e4 Ke6) 48. Ke4 {[%emt 0:01:48] White is clearly winning.} Kd6 {[%emt 0:01:17]} 49. f5 {[%emt 0:01:03]} g5 {[%emt 0:00:30]} 50. b3 {[%emt 0:00:59]} Bc7 {[%emt 0:04:12]} 51. Nf2 {[%emt 0:05:01]} Kc5 {[%emt 0:01:05]} 52. Ng4 {[%emt 0:02:00]} Bd8 {[%emt 0:00:09]} 53. Kd3 {[%emt 0:00:50]} Kd5 {[%emt 0:01:24]} 54. e4+ {[%emt 0:00:03]} Kd6 {[%emt 0:00:06]} 55. e5+ {[%emt 0:00:08]} fxe5 {[%emt 0:00:47]} 56. Ke4 {[%emt 0:00:05]} Kc5 {[%emt 0:01:09]} 57. Nxe5 {[%emt 0:02:35][%cal Of5f6] Hoping for f6!} a4 {[%emt 0:01:26]} 58. Nd3+ {[%emt 0:38:16] Weighted Error Value: White=0.17 (very precise) /Black=0.39} (58. bxa4 $142 Ba5 59. f6) 1-0

[Event "1st Chessable Sunway Formentera 2022"]
[Site "Formentera Punta Prima"]
[Date "2022.05.05"]
[Round "7.16"]
[White "Grutter, Tim"]
[Black "Perkampus, Laurin"]
[Result "1-0"]
[ECO "B76"]
[WhiteElo "2241"]
[BlackElo "2061"]
[Annotator "TA"]
[PlyCount "63"]
[EventDate "2022.05.05"]
[EventType "swiss"]
[EventCountry "ESP"]
[SourceTitle "playchess.com"]
[Source "ChessBase"]
[SourceQuality "1"]
[TimeControl "40/5400+30:1800+30"]

{[%evp 25,63,52,52,35,50,31,28,36,19,0,0,0,0,0,0,0,26,29,44,0,32,-73,386,386,386,384,366,366,2119,2093,29987,29988,29988,29989,29996,29997,29997,29997,29998,29999]} 1. e4 {[%emt 1:31:00]} c5 {[%emt 0:02:33]} 2. Nf3 {[%emt 0:00:00]} d6 {[%emt 0:00:05]} 3. d4 {[%emt 0:00:00]} cxd4 {[%emt 0:00:05]} 4. Nxd4 {[%emt 0:00:00]} Nf6 {[%emt 0:00:05]} 5. Nc3 {[%emt 0:00:00]} g6 {[%emt 0:00:28]} 6. Be3 {[%emt 0:00:00]} Bg7 {[%emt 0:00:05]} 7. f3 {[%emt 0:00:00]} O-O {[%emt 0:00:15]} 8. Qd2 {[%emt 0:00:00]} Nc6 {[%emt 0:00:10]} 9. O-O-O {[%emt 0:00:00]} d5 {[%emt 0:00:23]} 10. exd5 {[%emt 0:00:00]} Nxd5 {[%emt 0:00:09]} 11. Nxc6 {[%emt 0:00:00]} bxc6 {[%emt 0:00:02]} 12. Bd4 {[%emt 0:00:00]} e5 {[%emt 0:00:06]} 13. Bc5 {[%emt 0:00:00]} Re8 {[%emt 0:00:03]} 14. Ne4 {[%emt 0:00:00] B76: Sicilian Dragon: Yugoslav Attack, 9 g4 and 9 0-0-0.} Qc7 {[%emt 0:00:08] seems to push 14...Be6 aside.} 15. g4 {[%emt 0:00:00]} Be6 {[%emt 0:08:40]} 16. h4 {[%emt 0:00:00][%cal Bh2h4,Bh4h5][%mdl 32] White has an edge.} Rad8 {[%emt 0:06:14]} 17. h5 {[%emt 0:00:00]} Nf6 $1 {[%emt 0:05:29] [#]} 18. Bd3 $146 {[%emt 0:00:00] And now hxg6 would win.} ({Predecessor:} 18. Bd6 Nxe4 19. fxe4 Qb6 20. hxg6 hxg6 21. Be2 c5 22. a4 c4 23. a5 Qc6 24. Qb4 Qxe4 {0-1 (55) Kosteniuk,A (2485)-Buss,R (2340) Switzerland 2021}) 18... Nxe4 {[%emt 0:08:04]} 19. fxe4 {[%emt 0:00:00]} Bxg4 {[%emt 0:05:51]} 20. hxg6 {[%emt 0:00:00]} fxg6 {[%emt 0:22:59]} 21. Rdf1 {[%emt 0:00:00]} Be6 {[%emt 0:04:48]} 22. Qc3 {[%emt 0:00:00]} (22. Qh2 Bf8 23. Be3 Bxa2 $15) 22... Bf8 {[%emt 0:03:34]} 23. Rf6 {[%emt 0:00:00] [#]} (23. Be3 $14) 23... Bg7 $2 {[%emt 0:18:01][%mdl 8192] [#] This move loses the game for Black.} (23... Bxc5 $1 $17 24. Qxc5 Kg7) 24. Rxe6 $1 $18 {[%emt 0:00:00][%mdl 512]} Rxe6 {[%emt 0:00:19]} 25. Bc4 {[%emt 0:00:00] A strong pair of Bishops.} Qd7 {[%emt 0:00:48][%cal Og8h8]} 26. Qd3 {[%emt 0:00:00]} Kf7 {[%emt 0:13:29]} (26... Bh6+ 27. Kb1 Kf7 28. Bxe6+ Kxe6 29. Rxh6 Qxd3 30. cxd3 Rd7) 27. Bxe6+ {[%emt 0:00:00]} Kxe6 {[%emt 0:00:12]} 28. Qb3+ {[%emt 0:00:00] White mates.} ({Weaker is} 28. Qh3+ Kf7 29. Qb3+ (29. Qxh7 $2 {leads to mate.} Qd2+ 30. Kb1 Qd1+ 31. Rxd1 Rxd1#) (29. Qxd7+ Rxd7 30. Rxh7 g5 $11) 29... Qe6 $11) 28... Kf6 {[%emt 0:00:10]} 29. Rf1+ {[%emt 0:00:00]} Kg5 {[%emt 0:00:20]} 30. Qg3+ {[%emt 0:00:00]} Qg4 {[%emt 0:00:27]} 31. Be7+ {[%emt 0:00:00]} Kh5 {[%emt 0:00:16]} 32. Rh1+ {[%emt 0:00:00] Weighted Error Value: White=0.12 (very precise) /Black=0.76} 1-0

[Event "1st Chessable Sunway Formentera 2022"]
[Site "Formentera Punta Prima"]
[Date "2022.05.06"]
[Round "8.1"]
[White "Narciso Dublan, Marc"]
[Black "Santos Latasa, Jaime"]
[Result "1/2-1/2"]
[ECO "C01"]
[WhiteElo "2464"]
[BlackElo "2672"]
[Annotator "TA"]
[PlyCount "108"]
[EventDate "2022.05.05"]
[EventType "swiss"]
[EventCountry "ESP"]
[SourceTitle "playchess.com"]
[Source "ChessBase"]
[SourceQuality "1"]
[TimeControl "40/5400+30:1800+30"]

{[%evp 9,108,1,13,-12,-4,2,13,3,20,5,18,0,0,0,7,-20,-41,-50,-11,-9,-24,-9,-14,-10,-3,-41,-39,-26,-16,-48,-25,-31,-45,-52,-24,-10,-25,-68,-50,-60,-65,-111,-14,-14,0,-7,-28,-54,-46,-91,-9,-8,-12,-12,-12,-12,-19,-18,0,0,0,0,0,0,23,22,20,19,24,24,33,32,52,47,47,48,52,52,54,0,334,316,361,345,331,290,288,0,0,0,0,0,0,0,0,0,0,0,0,0,0]} 1. d4 {[%emt 0:00:06]} e6 {[%emt 0:01:37]} 2. e4 {[%emt 0:01:21]} d5 {[%emt 0:01:11]} 3. exd5 {[%emt 0:01:33]} exd5 {[%emt 0:00:06]} 4. Nf3 {[%emt 0:00:04]} Nc6 {[%emt 0:00:04]} 5. Bf4 {[%emt 0:01:30]} Bg4 {[%emt 0:02:34]} 6. c3 {[%emt 0:00:15] C01: French: Exchange Variation.} Qe7+ {[%emt 0:03:19]} 7. Be3 {[%emt 0:06:01]} Qf6 {[%emt 0:03:21] [#]} 8. Be2 $146 {[%emt 0:01:45]} ({Predecessor:} 8. Bd3 Bxf3 9. Qxf3 Qxf3 10. gxf3 O-O-O 11. Nd2 Nf6 12. O-O-O Nd7 13. Rde1 Nb6 14. Kc2 g6 15. Bg5 {1-0 (28) Mikalsen,O (1576)-Pedersen,B (1245) Alta 2006}) 8... Bd6 {[%emt 0:00:39]} 9. h3 {[%emt 0:02:29]} Be6 {[%emt 0:02:59]} 10. Nbd2 {[%emt 0:05:37]} h6 {[%emt 0:01:31]} 11. Nb3 {[%emt 0:09:03]} Nge7 {[%emt 0:03:42][%cal Bg8e7,Be7g6,Bg6f4][%mdl 32]} 12. Qd3 {[%emt 0:07:11]} (12. O-O {keeps more tension.} O-O-O 13. Nc5 Nf5 14. Bd3) 12... Bf5 {[%emt 0:02:11]} 13. Qd2 {[%emt 0:00:44]} b6 {[%emt 0:11:06]} 14. Bf4 {[%emt 0:01:35]} Ng6 {[%emt 0:00:46]} 15. Bxd6 {[%emt 0:00:18]} Qxd6 {[%emt 0:00:05]} 16. O-O {[%emt 0:02:25]} O-O {[%emt 0:00:47]} 17. Nh2 {[%emt 0:06:20]} Nf4 {[%emt 0:07:19]} 18. Bf3 {[%emt 0:03:24]} Rae8 {[%emt 0:05:08]} 19. Rae1 {[%emt 0:00:54]} Be4 {[%emt 0:08:41]} (19... Ne7 $5 {[%cal Rf5d3]} 20. Nc1 c5 $15) 20. Bxe4 {[%emt 0:01:49]} dxe4 {[%emt 0:00:08]} 21. f3 {[%emt 0:00:20]} f5 {[%emt 0:00:35]} 22. fxe4 {[%emt 0:01:22]} fxe4 {[%emt 0:00:17]} (22... Rxe4 23. Rxe4 fxe4 24. Qe3 $16) 23. Ng4 {[%emt 0:03:23]} h5 {[%emt 0:02:25]} (23... Nd3 24. Rxf8+ Qxf8 25. Rf1 $11) 24. Ne3 {[%emt 0:01:43]} (24. Ne5 $2 Nxe5 25. dxe5 Qxe5 $19) 24... Qg6 {[%emt 0:02:05]} (24... Nd3 25. Rxf8+ Rxf8 26. Rf1 $11) 25. Kh1 {[%emt 0:06:00]} (25. Kh2 $15 {might be stronger.}) 25... Qg3 {[%emt 0:05:27]} (25... Ne7 $1 $17) 26. Nc1 $1 $11 {[%emt 0:01:05]} Qg6 {[%emt 0:03:18]} 27. Rf2 {[%emt 0:03:20]} Ne7 {[%emt 0:02:24]} 28. Ref1 {[%emt 0:07:15]} Qg5 {[%emt 0:01:14]} 29. c4 {[%emt 0:06:59] [#]} Neg6 {[%emt 0:02:36]} (29... Nf5 $1 $17 {[%cal Rf5g3] Hoping for ...Ng3+.} 30. Nxf5 Rxf5) 30. Ne2 {[%emt 0:01:15]} (30. b3 {feels hotter.} Nh4 31. Nd5 e3 32. Nxe3 Nfxg2 33. Rxf8+ Rxf8 34. Rxf8+ Kxf8 35. Qf2+) 30... Nxe2 {[%emt 0:04:01]} 31. Rxf8+ {[%emt 0:01:19]} Rxf8 {[%emt 0:00:12]} 32. Rxf8+ {[%emt 0:00:16]} Kxf8 {[%emt 0:00:17]} 33. Qxe2 {[%emt 0:00:07][%mdl 4096] Endgame KQN-KQN} Kg8 {[%emt 0:04:02]} 34. Nd5 {[%emt 0:08:37]} c6 {[%emt 0:00:41]} (34... Qc1+ {is interesting.} 35. Kh2 c6 36. Qxe4 cxd5 37. Qxd5+ Kh7) 35. Nc3 {[%emt 0:00:21]} e3 {[%emt 0:00:40]} 36. Qf3 {[%emt 0:01:07]} c5 {[%emt 0:00:52]} 37. dxc5 {[%emt 0:04:17]} bxc5 {[%emt 0:04:08]} 38. Nd5 {[%emt 0:02:51]} Nh4 $1 {[%emt 0:00:45]} 39. Qe4 {[%emt 0:00:06]} Nf5 {[%emt 0:00:55]} 40. Kg1 {[%emt 0:00:00][%cal Oe4f5]} g6 {[%emt 0:00:00]} 41. Qe8+ {[%emt 0:18:14]} Kg7 {[%emt 0:02:08]} 42. Qe5+ $1 {[%emt 0:01:14]} Kf7 {[%emt 0:00:49]} 43. Qc7+ $1 {[%emt 0:00:56]} Kg8 {[%emt 0:00:35]} 44. Qb8+ {[%emt 0:01:42]} (44. Qxa7 $2 e2 45. Qb8+ Kh7 46. Qc7+ (46. Kf2 $2 Qh4+ 47. Kxe2 Qxc4+ 48. Kf2 Qd4+ 49. Kf1 Qxd5 $19) 46... Ng7 $19) (44. Qf4 $1 $14 Qxf4 45. Nxf4) 44... Kg7 $2 {[%emt 0:00:34][%mdl 8192]} (44... Kf7 $1 $11 {and Black has nothing to worry.} 45. Qxa7+ Ke6 46. Nc7+ (46. Qxc5 e2 $11) 46... Kf7) 45. Qxa7+ $18 {[%emt 0:00:36]} Kh6 {[%emt 0:00:50] [#] ( -> ...e2)} 46. Qb8 $1 {[%emt 0:01:09][%cal Rb8h8]} ({And not} 46. Qxc5 e2 47. Qf8+ Kh7 48. Qf7+ Kh6 49. Qf8+ Kh7 50. Qf7+ Kh6 51. Qf8+ $11) 46... Kh7 {[%emt 0:00:57] Inhibits Qh8+. White must now prevent ...e2.} 47. Qc7+ {[%emt 0:01:06]} Kg8 {[%emt 0:00:12] [#] Strongly threatening ...e2.} 48. Qc8+ $2 {[%emt 0:02:10]} ({Stronger than} 48. Qxc5 e2 49. Kf2 (49. Qc8+ Kh7 $11) 49... Qxg2+ 50. Kxg2 e1=Q $11) ({White must play} 48. Qf4 $1 $18 {[%cal Rf4g5]} Qd8 49. Nxe3) 48... Kh7 $11 {[%emt 0:00:22] The position is equal.} 49. Qd7+ {[%emt 0:00:26]} Kh6 {[%emt 0:00:55] And now ...Nh4 would win.} 50. Qe8 {[%emt 0:00:12][%cal Re8h8]} Qg3 {[%emt 0:00:52]} 51. Qf8+ {[%emt 0:05:50]} Kg5 {[%emt 0:00:10]} 52. Qf6+ {[%emt 0:00:31]} Kh6 {[%emt 0:00:07]} 53. Qf8+ {[%emt 0:00:30]} Kg5 {[%emt 0:00:05]} 54. Qf6+ {[%emt 0:00:41]} Kh6 {[%emt 0:44:46] Weighted Error Value: White=0.13 (very precise) /Black=0.18 (very precise)} 1/2-1/2